[Event "Betsys MČR v online bleskovém šachu 2021"]
[Site "Chess.com"]
[Date "2021.04.17"]
[Round "2"]
[White "Vojta0007"]
[Black "Sunnika"]
[Result "0-1"]
[WhiteElo "1499"]
[BlackElo "2314"]
[TimeControl "180+1"]
[EndTime "9:16:50 PDT"]
[Termination "Uživatel Sunnika zvítězil matem"]

1. d4 {[%clk 0:03:00.9]} 1... Nf6 {[%clk 0:02:59.5]} 2. c4 {[%clk 0:02:59.8]}
2... c5 {[%clk 0:02:59]} 3. d5 {[%clk 0:02:59.2]} 3... e6 {[%clk 0:02:59.3]} 4.
Nc3 {[%clk 0:02:58.1]} 4... exd5 {[%clk 0:03:00.2]} 5. cxd5 {[%clk 0:02:57.2]}
5... d6 {[%clk 0:03:01.1]} 6. e4 {[%clk 0:02:56.1]} 6... g6 {[%clk 0:02:59.4]}
7. Bd3 {[%clk 0:02:54.5]} 7... Bg7 {[%clk 0:02:58.5]} 8. Nf3 {[%clk 0:02:53.4]}
8... a6 {[%clk 0:02:58]} 9. a4 {[%clk 0:02:50.4]} 9... Bg4 {[%clk 0:02:58.4]}
10. h3 {[%clk 0:02:47.2]} 10... Bxf3 {[%clk 0:02:58.5]} 11. Qxf3 {[%clk
0:02:46.2]} 11... O-O {[%clk 0:02:59.4]} 12. O-O {[%clk 0:02:45.1]} 12... Nbd7
{[%clk 0:02:59.9]} 13. Be3 {[%clk 0:02:40.2]} 13... Re8 {[%clk 0:02:59]} 14.
Rfe1 {[%clk 0:02:34.2]} 14... Rb8 {[%clk 0:02:55.3]} 15. Qd1 {[%clk 0:02:20]}
15... Qc7 {[%clk 0:02:33.7]} 16. Qd2 {[%clk 0:02:17.1]} 16... c4 {[%clk
0:02:30]} 17. Bc2 {[%clk 0:02:12.7]} 17... b5 {[%clk 0:02:30.9]} 18. axb5 {[%clk
0:02:10.2]} 18... axb5 {[%clk 0:02:31.8]} 19. Ra7 {[%clk 0:02:01.8]} 19... Rb7
{[%clk 0:02:31.8]} 20. Rea1 {[%clk 0:01:59.1]} 20... b4 {[%clk 0:02:28]} 21.
Rxb7 {[%clk 0:01:36.4]} 21... Qxb7 {[%clk 0:02:17.5]} 22. Ra7 {[%clk 0:01:35]}
22... bxc3 {[%clk 0:02:13]} 23. Rxb7 {[%clk 0:01:30.1]} 23... cxd2 {[%clk
0:02:09.9]} 24. Bxd2 {[%clk 0:01:29.5]} 24... Nc5 {[%clk 0:02:09.2]} 25. Rb6
{[%clk 0:01:23.6]} 25... Nfxe4 {[%clk 0:02:09]} 26. Be3 {[%clk 0:01:15.6]} 26...
Nd3 {[%clk 0:02:06.8]} 27. f3 {[%clk 0:01:08.1]} 27... Nec5 {[%clk 0:02:04.3]}
28. Bxc5 {[%clk 0:01:02]} 28... Nxc5 {[%clk 0:02:04]} 29. Rxd6 {[%clk
0:00:57.9]} 29... Bxb2 {[%clk 0:02:01.8]} 30. Rc6 {[%clk 0:00:56.4]} 30... Re2
{[%clk 0:01:57.1]} 31. Be4 {[%clk 0:00:44.7]} 31... Bd4+ {[%clk 0:01:54]} 32.
Kh1 {[%clk 0:00:41.1]} 32... c3 {[%clk 0:01:49.2]} 33. d6 {[%clk 0:00:36]} 33...
Kg7 {[%clk 0:01:03.4]} 34. Rc8 {[%clk 0:00:20.1]} 34... Rxe4 {[%clk 0:00:58.2]}
35. fxe4 {[%clk 0:00:19]} 35... c2 {[%clk 0:00:58.5]} 36. d7 {[%clk 0:00:15.1]}
36... c1=Q+ {[%clk 0:00:58.5]} 37. Kh2 {[%clk 0:00:14.8]} 37... Qf4+ {[%clk
0:00:58.2]} 38. g3 {[%clk 0:00:14.3]} 38... Qf2+ {[%clk 0:00:58.2]} 39. Kh1
{[%clk 0:00:13.9]} 39... Qg1# {[%clk 0:00:59.1]} 0-1

[Event "Betsys MČR v online bleskovém šachu 2021"]
[Site "Chess.com"]
[Date "2021.04.17"]
[Round "2"]
[White "Maximon2012"]
[Black "DrStillestein"]
[Result "0-1"]
[WhiteElo "1097"]
[BlackElo "2106"]
[TimeControl "180+1"]
[EndTime "9:16:52 PDT"]
[Termination "Uživatel DrStillestein zvítězil matem"]

1. g3 {[%clk 0:03:00.9]} 1... c6 {[%clk 0:02:58.8]} 2. Bg2 {[%clk 0:02:58.6]}
2... d5 {[%clk 0:02:59.4]} 3. Nf3 {[%clk 0:02:58.3]} 3... Nf6 {[%clk 0:02:58.5]}
4. O-O {[%clk 0:02:58.1]} 4... g6 {[%clk 0:02:52.9]} 5. d3 {[%clk 0:02:56.5]}
5... Bg7 {[%clk 0:02:53.4]} 6. Bg5 {[%clk 0:02:55.9]} 6... h6 {[%clk 0:02:51.8]}
7. Bf4 {[%clk 0:02:54.1]} 7... Nbd7 {[%clk 0:02:47.2]} 8. Nbd2 {[%clk
0:02:51.4]} 8... Nh5 {[%clk 0:02:47]} 9. e3 {[%clk 0:02:50.4]} 9... Nxf4 {[%clk
0:02:46.2]} 10. exf4 {[%clk 0:02:49.8]} 10... Bxb2 {[%clk 0:02:43.9]} 11. Rb1
{[%clk 0:02:47.8]} 11... Bg7 {[%clk 0:02:42.9]} 12. Qe2 {[%clk 0:02:45.8]} 12...
O-O {[%clk 0:02:42.4]} 13. Rfe1 {[%clk 0:02:44.7]} 13... Re8 {[%clk 0:02:35.5]}
14. Nh4 {[%clk 0:02:33.5]} 14... Nf6 {[%clk 0:02:20.5]} 15. f5 {[%clk
0:02:28.7]} 15... g5 {[%clk 0:02:17.8]} 16. Nhf3 {[%clk 0:02:26.5]} 16... Bxf5
{[%clk 0:02:17.6]} 17. Qe5 {[%clk 0:02:19.9]} 17... Qd7 {[%clk 0:02:06.5]} 18.
Nd4 {[%clk 0:02:14]} 18... Bg6 {[%clk 0:02:03.5]} 19. Qe3 {[%clk 0:01:50.9]}
19... Ng4 {[%clk 0:02:01.5]} 20. Qf3 {[%clk 0:01:48]} 20... Bxd4 {[%clk
0:02:00.6]} 21. Re2 {[%clk 0:01:23.2]} 21... Bg7 {[%clk 0:01:54.7]} 22. Rbe1
{[%clk 0:01:20.2]} 22... e6 {[%clk 0:01:52.6]} 23. Qxg4 {[%clk 0:01:17.8]} 23...
Bc3 {[%clk 0:01:43.9]} 24. Rd1 {[%clk 0:01:05.5]} 24... Qc7 {[%clk 0:01:39.6]}
25. Nf3 {[%clk 0:00:55.7]} 25... Bf6 {[%clk 0:01:28]} 26. Qb4 {[%clk 0:00:53.1]}
26... a5 {[%clk 0:01:26.2]} 27. Qa3 {[%clk 0:00:48.6]} 27... b5 {[%clk
0:01:26.1]} 28. Qc1 {[%clk 0:00:41.6]} 28... Kg7 {[%clk 0:01:23.3]} 29. Rde1
{[%clk 0:00:38]} 29... b4 {[%clk 0:01:22.3]} 30. Ne5 {[%clk 0:00:22.6]} 30...
Bh7 {[%clk 0:01:19.5]} 31. Bh3 {[%clk 0:00:19.5]} 31... c5 {[%clk 0:01:09.6]}
32. Kg2 {[%clk 0:00:19.4]} 32... Qb7 {[%clk 0:01:07.2]} 33. Ng4 {[%clk
0:00:17.5]} 33... d4+ {[%clk 0:01:06]} 34. Kg1 {[%clk 0:00:11.1]} 34... Be7
{[%clk 0:01:01.7]} 35. Kf1 {[%clk 0:00:09]} 35... Bd6 {[%clk 0:00:57.1]} 36. Rd1
{[%clk 0:00:07.1]} 36... Qh1# {[%clk 0:00:56.5]} 0-1

[Event "Betsys MČR v online bleskovém šachu 2021"]
[Site "Chess.com"]
[Date "2021.04.17"]
[Round "2"]
[White "domecek"]
[Black "martin1804"]
[Result "1/2-1/2"]
[WhiteElo "1971"]
[BlackElo "2274"]
[TimeControl "180+1"]
[EndTime "9:16:53 PDT"]
[Termination "Remíza opakováním pozice"]

1. d4 {[%clk 0:03:00.9]} 1... Nf6 {[%clk 0:02:58.3]} 2. Nf3 {[%clk 0:03:00.8]}
2... e6 {[%clk 0:02:52.8]} 3. g3 {[%clk 0:02:59]} 3... b5 {[%clk 0:02:48.7]} 4.
Bg2 {[%clk 0:02:58.1]} 4... Bb7 {[%clk 0:02:46.6]} 5. O-O {[%clk 0:02:58.2]}
5... c5 {[%clk 0:02:41.6]} 6. a4 {[%clk 0:02:56.3]} 6... b4 {[%clk 0:02:40.4]}
7. c4 {[%clk 0:02:54.5]} 7... cxd4 {[%clk 0:02:30.1]} 8. Nxd4 {[%clk 0:02:40]}
8... Bxg2 {[%clk 0:02:28.2]} 9. Kxg2 {[%clk 0:02:40]} 9... d5 {[%clk 0:02:26.5]}
10. cxd5 {[%clk 0:02:29]} 10... Qxd5+ {[%clk 0:02:25.4]} 11. Nf3 {[%clk
0:02:29]} 11... Qb7 {[%clk 0:02:05.8]} 12. b3 {[%clk 0:02:22.2]} 12... h5 {[%clk
0:02:03.7]} 13. Kg1 {[%clk 0:02:14.6]} 13... Nbd7 {[%clk 0:01:55.3]} 14. Bb2
{[%clk 0:02:13.1]} 14... Rd8 {[%clk 0:01:37.6]} 15. Nbd2 {[%clk 0:02:10.2]}
15... h4 {[%clk 0:01:01.2]} 16. Rc1 {[%clk 0:02:05.2]} 16... hxg3 {[%clk
0:00:59.8]} 17. hxg3 {[%clk 0:02:02.5]} 17... g5 {[%clk 0:00:52.5]} 18. e4
{[%clk 0:01:56.3]} 18... Be7 {[%clk 0:00:43.1]} 19. Nxg5 {[%clk 0:01:49.2]}
19... Rg8 {[%clk 0:00:33.5]} 20. Ngf3 {[%clk 0:01:39.8]} 20... Nxe4 {[%clk
0:00:32.4]} 21. Nxe4 {[%clk 0:01:38.4]} 21... Qxe4 {[%clk 0:00:33.3]} 22. Nd4
{[%clk 0:01:29.3]} 22... Rh8 {[%clk 0:00:30.4]} 23. Qf3 {[%clk 0:01:25.1]} 23...
Qh7 {[%clk 0:00:30.4]} 24. Rfd1 {[%clk 0:01:12.1]} 24... Qh2+ {[%clk 0:00:28.1]}
25. Kf1 {[%clk 0:01:11.6]} 25... Ne5 {[%clk 0:00:28.6]} 26. Qg2 {[%clk
0:01:09.2]} 26... Qh5 {[%clk 0:00:23.3]} 27. Ne2 {[%clk 0:00:53.7]} 27... Rxd1+
{[%clk 0:00:19]} 28. Rxd1 {[%clk 0:00:53.9]} 28... Nf3 {[%clk 0:00:19.8]} 29.
Bxh8 {[%clk 0:00:48.6]} 29... Nh2+ {[%clk 0:00:17.5]} 30. Kg1 {[%clk 0:00:46.4]}
30... Nf3+ {[%clk 0:00:17.3]} 31. Kf1 {[%clk 0:00:46]} 31... Nh2+ {[%clk
0:00:16.6]} 32. Kg1 {[%clk 0:00:45.7]} 32... Nf3+ {[%clk 0:00:10.6]} 33. Kf1
{[%clk 0:00:44.7]} 1/2-1/2

[Event "Betsys MČR v online bleskovém šachu 2021"]
[Site "Chess.com"]
[Date "2021.04.17"]
[Round "2"]
[White "Jindrich4321"]
[Black "mravecuk"]
[Result "1/2-1/2"]
[WhiteElo "1940"]
[BlackElo "2254"]
[TimeControl "180+1"]
[EndTime "9:16:56 PDT"]
[Termination "Remíza opakováním pozice"]

1. d4 {[%clk 0:03:00.9]} 1... d5 {[%clk 0:02:46.9]} 2. Nf3 {[%clk 0:02:59.6]}
2... e6 {[%clk 0:02:45.8]} 3. Bf4 {[%clk 0:02:59.2]} 3... Bd6 {[%clk 0:02:45.4]}
4. Bg3 {[%clk 0:02:58.9]} 4... c5 {[%clk 0:02:43.5]} 5. e3 {[%clk 0:02:58.1]}
5... Nc6 {[%clk 0:02:42.7]} 6. c3 {[%clk 0:02:57.8]} 6... Nge7 {[%clk
0:02:42.6]} 7. Bd3 {[%clk 0:02:57.1]} 7... c4 {[%clk 0:02:40.7]} 8. Bc2 {[%clk
0:02:56.4]} 8... f5 {[%clk 0:02:40.7]} 9. b3 {[%clk 0:02:44.1]} 9... O-O {[%clk
0:02:24.1]} 10. bxc4 {[%clk 0:02:41.7]} 10... dxc4 {[%clk 0:02:25]} 11. O-O
{[%clk 0:02:37.8]} 11... Nd5 {[%clk 0:02:20.4]} 12. Qe2 {[%clk 0:02:27.8]} 12...
b5 {[%clk 0:02:17.9]} 13. a4 {[%clk 0:02:24]} 13... Bxg3 {[%clk 0:01:57.9]} 14.
hxg3 {[%clk 0:02:22.2]} 14... b4 {[%clk 0:01:27.6]} 15. Qxc4 {[%clk 0:02:18.1]}
15... Na5 {[%clk 0:01:27.5]} 16. Qa2 {[%clk 0:01:49.4]} 16... bxc3 {[%clk
0:01:22.8]} 17. Bb3 {[%clk 0:01:40.6]} 17... Ba6 {[%clk 0:01:16.4]} 18. Rc1
{[%clk 0:01:38.3]} 18... Rc8 {[%clk 0:01:15]} 19. Bxd5 {[%clk 0:01:26.8]} 19...
exd5 {[%clk 0:01:06.6]} 20. Rxc3 {[%clk 0:01:21]} 20... Bc4 {[%clk 0:01:05.3]}
21. Qc2 {[%clk 0:01:13.2]} 21... Qb6 {[%clk 0:00:57.4]} 22. Nbd2 {[%clk
0:01:07.3]} 22... Rb8 {[%clk 0:00:49.4]} 23. Ne5 {[%clk 0:00:57.7]} 23... Qb2
{[%clk 0:00:36]} 24. Qxb2 {[%clk 0:00:53.7]} 24... Rxb2 {[%clk 0:00:35.1]} 25.
Ndxc4 {[%clk 0:00:52.5]} 25... dxc4 {[%clk 0:00:30.6]} 26. Nxc4 {[%clk 0:00:51]}
26... Rc8 {[%clk 0:00:23.4]} 27. Nxb2 {[%clk 0:00:46.4]} 27... Rxc3 {[%clk
0:00:24.3]} 28. Nd1 {[%clk 0:00:36.9]} 28... Rc4 {[%clk 0:00:24.2]} 29. Nb2
{[%clk 0:00:27.5]} 29... Rc3 {[%clk 0:00:23.7]} 30. Nd1 {[%clk 0:00:27]} 30...
Rc4 {[%clk 0:00:20.2]} 31. Nb2 {[%clk 0:00:26.7]} 31... Rc3 {[%clk 0:00:19.5]}
1/2-1/2

[Event "Betsys MČR v online bleskovém šachu 2021"]
[Site "Chess.com"]
[Date "2021.04.17"]
[Round "2"]
[White "TomSedmihradsky"]
[Black "FaceOfLightning"]
[Result "0-1"]
[WhiteElo "1444"]
[BlackElo "1923"]
[TimeControl "180+1"]
[EndTime "9:16:56 PDT"]
[Termination "Uživatel FaceOfLightning zvítězil po vzdání soupeře"]

1. d4 {[%clk 0:03:00.9]} 1... Nf6 {[%clk 0:02:58.4]} 2. c4 {[%clk 0:02:59.4]}
2... e6 {[%clk 0:02:56.9]} 3. Nc3 {[%clk 0:02:59.2]} 3... d5 {[%clk 0:02:55.1]}
4. Nf3 {[%clk 0:02:55.9]} 4... Nbd7 {[%clk 0:02:53]} 5. Bg5 {[%clk 0:02:51.5]}
5... c6 {[%clk 0:02:51.6]} 6. e3 {[%clk 0:02:50.6]} 6... Qa5 {[%clk 0:02:50]} 7.
a3 {[%clk 0:02:44.5]} 7... dxc4 {[%clk 0:02:36.3]} 8. Bxc4 {[%clk 0:02:42.3]}
8... Ne4 {[%clk 0:02:35.1]} 9. Qc2 {[%clk 0:02:34.6]} 9... Nxg5 {[%clk
0:02:31.8]} 10. Nxg5 {[%clk 0:02:33.3]} 10... Qxg5 {[%clk 0:02:30.8]} 11. O-O
{[%clk 0:02:29]} 11... Be7 {[%clk 0:02:24.4]} 12. Ne4 {[%clk 0:02:25.1]} 12...
Qg6 {[%clk 0:02:23.7]} 13. Bd3 {[%clk 0:02:22.3]} 13... f5 {[%clk 0:02:19.4]}
14. Ng3 {[%clk 0:02:15.6]} 14... O-O {[%clk 0:02:17.8]} 15. e4 {[%clk
0:02:08.8]} 15... f4 {[%clk 0:02:08.1]} 16. Ne2 {[%clk 0:02:02.8]} 16... f3
{[%clk 0:01:59.6]} 17. Ng3 {[%clk 0:02:01.1]} 17... fxg2 {[%clk 0:01:59]} 18.
Kxg2 {[%clk 0:02:00.3]} 18... Nf6 {[%clk 0:01:50.7]} 19. e5 {[%clk 0:01:56.5]}
19... Qh6 {[%clk 0:01:49.8]} 20. exf6 {[%clk 0:01:46.8]} 20... Bxf6 {[%clk
0:01:49.8]} 21. Rae1 {[%clk 0:01:44.6]} 21... Bxd4 {[%clk 0:01:45.3]} 22. Re4
{[%clk 0:01:30.6]} 22... e5 {[%clk 0:01:43.5]} 23. Bc4+ {[%clk 0:01:20.4]} 23...
Kh8 {[%clk 0:01:42.4]} 24. f3 {[%clk 0:00:46.4]} 24... Bh3+ {[%clk 0:01:39.7]}
25. Kh1 {[%clk 0:00:42]} 25... Bxf1 {[%clk 0:01:38.3]} 26. Nf5 {[%clk
0:00:31.8]} 26... Rxf5 {[%clk 0:01:32.6]} 27. Rg4 {[%clk 0:00:22]} 27... Bxc4
{[%clk 0:01:21.4]} 28. Qxf5 {[%clk 0:00:19.8]} 28... Be6 {[%clk 0:01:14]} 29.
Qe4 {[%clk 0:00:13.7]} 29... Bxg4 {[%clk 0:01:12.9]} 30. Qxg4 {[%clk 0:00:13]}
30... Qc1+ {[%clk 0:01:11.5]} 31. Kg2 {[%clk 0:00:12.8]} 31... Qg1+ {[%clk
0:01:11]} 32. Kh3 {[%clk 0:00:12.6]} 32... Qxg4+ {[%clk 0:01:10.4]} 33. Kxg4
{[%clk 0:00:12.7]} 33... Rf8 {[%clk 0:01:09.3]} 34. h4 {[%clk 0:00:11.7]} 34...
Rf4+ {[%clk 0:01:08.1]} 35. Kg3 {[%clk 0:00:10.1]} 35... h5 {[%clk 0:01:06.6]}
36. b4 {[%clk 0:00:07.9]} 36... Bb2 {[%clk 0:01:05.3]} 37. a4 {[%clk 0:00:06.7]}
37... Rxb4 {[%clk 0:01:04.7]} 38. a5 {[%clk 0:00:05]} 0-1

[Event "Betsys MČR v online bleskovém šachu 2021"]
[Site "Chess.com"]
[Date "2021.04.17"]
[Round "2"]
[White "Johanna94"]
[Black "penguinorodriguez"]
[Result "0-1"]
[WhiteElo "2079"]
[BlackElo "2551"]
[TimeControl "180+1"]
[EndTime "9:16:57 PDT"]
[Termination "Uživatel penguinorodriguez zvítězil matem"]

1. d4 {[%clk 0:03:00.9]} 1... e6 {[%clk 0:02:55.7]} 2. c4 {[%clk 0:03:00.3]}
2... f5 {[%clk 0:02:56]} 3. Nf3 {[%clk 0:02:58.4]} 3... Nf6 {[%clk 0:02:56.3]}
4. h3 {[%clk 0:02:47.8]} 4... g6 {[%clk 0:02:34.4]} 5. Bf4 {[%clk 0:02:38.6]}
5... Bg7 {[%clk 0:02:34.4]} 6. Nbd2 {[%clk 0:02:36.6]} 6... O-O {[%clk
0:02:23.2]} 7. e3 {[%clk 0:02:30.1]} 7... d6 {[%clk 0:02:22]} 8. Qc2 {[%clk
0:02:24.2]} 8... Qe7 {[%clk 0:02:14.8]} 9. e4 {[%clk 0:02:16.6]} 9... fxe4
{[%clk 0:02:02.3]} 10. Nxe4 {[%clk 0:02:16.3]} 10... Nc6 {[%clk 0:02:02.9]} 11.
O-O-O {[%clk 0:01:41.8]} 11... Nb4 {[%clk 0:01:50.2]} 12. Nxf6+ {[%clk
0:01:35.6]} 12... Qxf6 {[%clk 0:01:50]} 13. Bg5 {[%clk 0:01:19.6]} 13... Qf7
{[%clk 0:01:35.2]} 14. Qb3 {[%clk 0:01:10.3]} 14... a5 {[%clk 0:01:35.4]} 15. a3
{[%clk 0:01:08.2]} 15... Nc6 {[%clk 0:01:35.2]} 16. Be2 {[%clk 0:00:59.8]} 16...
a4 {[%clk 0:01:15.2]} 17. Qe3 {[%clk 0:00:55.2]} 17... Na5 {[%clk 0:00:52.2]}
18. Kb1 {[%clk 0:00:55]} 18... e5 {[%clk 0:00:45.6]} 19. dxe5 {[%clk 0:00:53.6]}
19... Bf5+ {[%clk 0:00:46.1]} 20. Bd3 {[%clk 0:00:50.9]} 20... Nxc4 {[%clk
0:00:46.4]} 21. Qe2 {[%clk 0:00:29.5]} 21... Bxe5 {[%clk 0:00:41.6]} 22. Bc1
{[%clk 0:00:26.1]} 22... Rfe8 {[%clk 0:00:28.9]} 23. Qf1 {[%clk 0:00:20]} 23...
Nxa3+ {[%clk 0:00:25.9]} 24. Ka1 {[%clk 0:00:16.4]} 24... Nc2+ {[%clk
0:00:26.3]} 25. Bxc2 {[%clk 0:00:14.6]} 25... Bxc2 {[%clk 0:00:27.2]} 26. Re1
{[%clk 0:00:13.5]} 26... a3 {[%clk 0:00:25.8]} 27. Nxe5 {[%clk 0:00:12.1]} 27...
axb2+ {[%clk 0:00:25.7]} 28. Kxb2 {[%clk 0:00:12.8]} 28... Qb3# {[%clk
0:00:26.2]} 0-1

[Event "Betsys MČR v online bleskovém šachu 2021"]
[Site "Chess.com"]
[Date "2021.04.17"]
[Round "2"]
[White "Honzik1950"]
[Black "Loveforever_Pepi"]
[Result "0-1"]
[WhiteElo "1490"]
[BlackElo "2303"]
[TimeControl "180+1"]
[EndTime "9:16:59 PDT"]
[Termination "Uživatel Loveforever_Pepi zvítězil po vzdání soupeře"]

1. e4 {[%clk 0:03:00.9]} 1... c5 {[%clk 0:02:58.6]} 2. Nf3 {[%clk 0:02:56.6]}
2... d6 {[%clk 0:02:58.5]} 3. d4 {[%clk 0:02:56.7]} 3... cxd4 {[%clk 0:02:58.5]}
4. Nxd4 {[%clk 0:02:57]} 4... Nf6 {[%clk 0:02:58.7]} 5. Nc3 {[%clk 0:02:57.1]}
5... g6 {[%clk 0:02:58.7]} 6. f3 {[%clk 0:02:55.3]} 6... Bg7 {[%clk 0:02:58.5]}
7. Be3 {[%clk 0:02:55.6]} 7... O-O {[%clk 0:02:58.5]} 8. Qd2 {[%clk 0:02:55.9]}
8... Nc6 {[%clk 0:02:58.7]} 9. O-O-O {[%clk 0:02:56]} 9... Bd7 {[%clk
0:02:58.4]} 10. Kb1 {[%clk 0:02:56]} 10... Rc8 {[%clk 0:02:56.3]} 11. g4 {[%clk
0:02:55.8]} 11... Ne5 {[%clk 0:02:56.3]} 12. Be2 {[%clk 0:02:54.6]} 12... Be6
{[%clk 0:02:49]} 13. h4 {[%clk 0:02:53.2]} 13... Qa5 {[%clk 0:01:51.6]} 14. Nxe6
{[%clk 0:02:52.4]} 14... fxe6 {[%clk 0:01:49.6]} 15. h5 {[%clk 0:02:48.1]} 15...
Nc4 {[%clk 0:01:23.9]} 16. Bxc4 {[%clk 0:02:46.3]} 16... Rxc4 {[%clk 0:01:24.4]}
17. hxg6 {[%clk 0:02:35.6]} 17... hxg6 {[%clk 0:01:13]} 18. Bh6 {[%clk
0:02:31.2]} 18... Rf7 {[%clk 0:01:13]} 19. Bxg7 {[%clk 0:02:26.7]} 19... Rxg7
{[%clk 0:01:13]} 20. Rh2 {[%clk 0:02:11.9]} 20... g5 {[%clk 0:01:00.2]} 21. Rdh1
{[%clk 0:02:06.5]} 21... Nd7 {[%clk 0:00:59.8]} 22. Nd1 {[%clk 0:01:36.9]} 22...
Qxd2 {[%clk 0:00:56.8]} 23. Rxd2 {[%clk 0:01:37.1]} 23... Ne5 {[%clk 0:00:56.4]}
24. Rf2 {[%clk 0:01:13]} 24... Rc8 {[%clk 0:00:51.9]} 25. b3 {[%clk 0:00:59.5]}
25... Rf8 {[%clk 0:00:49.3]} 26. Rh3 {[%clk 0:00:41.8]} 26... Rgf7 {[%clk
0:00:44.8]} 27. f4 {[%clk 0:00:29.1]} 27... Rxf4 {[%clk 0:00:41.4]} 28. Rfh2
{[%clk 0:00:29.1]} 28... Rf1 {[%clk 0:00:34.3]} 29. Rh8+ {[%clk 0:00:27]} 29...
Kf7 {[%clk 0:00:33.7]} 30. R2h7+ {[%clk 0:00:26.5]} 30... Ke8 {[%clk 0:00:31.5]}
31. Rxf8+ {[%clk 0:00:24.9]} 31... Kxf8 {[%clk 0:00:30.8]} 32. Rh2 {[%clk
0:00:19.7]} 32... Rxd1+ {[%clk 0:00:28.9]} 0-1

[Event "Betsys MČR v online bleskovém šachu 2021"]
[Site "Chess.com"]
[Date "2021.04.17"]
[Round "2"]
[White "Varinius"]
[Black "Jakuboss22005"]
[Result "1-0"]
[WhiteElo "2451"]
[BlackElo "2057"]
[TimeControl "180+1"]
[EndTime "9:17:02 PDT"]
[Termination "Uživatel Varinius zvítězil po vzdání soupeře"]

1. Nf3 {[%clk 0:03:00.9]} 1... g6 {[%clk 0:02:59]} 2. c4 {[%clk 0:03:00.2]} 2...
Bg7 {[%clk 0:02:59.1]} 3. Nc3 {[%clk 0:03:00.6]} 3... d6 {[%clk 0:02:57.8]} 4.
d4 {[%clk 0:02:58.4]} 4... Nf6 {[%clk 0:02:56.4]} 5. e4 {[%clk 0:02:57.9]} 5...
O-O {[%clk 0:02:55.5]} 6. h3 {[%clk 0:02:56.3]} 6... c5 {[%clk 0:02:54.8]} 7. d5
{[%clk 0:02:55.6]} 7... e6 {[%clk 0:02:54.7]} 8. Bd3 {[%clk 0:02:55.2]} 8...
exd5 {[%clk 0:02:49]} 9. exd5 {[%clk 0:02:56.1]} 9... Na6 {[%clk 0:02:48.4]} 10.
O-O {[%clk 0:02:55.4]} 10... Nc7 {[%clk 0:02:47.9]} 11. Bf4 {[%clk 0:02:53.2]}
11... Rb8 {[%clk 0:02:25.9]} 12. a4 {[%clk 0:02:51.7]} 12... b6 {[%clk
0:02:25.4]} 13. Re1 {[%clk 0:02:30.3]} 13... Nfe8 {[%clk 0:02:13.7]} 14. Qd2
{[%clk 0:02:26.1]} 14... Na6 {[%clk 0:02:02]} 15. Nb5 {[%clk 0:01:58.9]} 15...
Nb4 {[%clk 0:01:56.7]} 16. Nxa7 {[%clk 0:01:56.4]} 16... Nxd3 {[%clk 0:01:27.7]}
17. Qxd3 {[%clk 0:01:47.8]} 17... Bf5 {[%clk 0:01:27.4]} 18. Qd2 {[%clk
0:01:44.4]} 18... Nf6 {[%clk 0:01:20.2]} 19. Nc6 {[%clk 0:01:43.3]} 19... Qc7
{[%clk 0:01:09.8]} 20. Re7 {[%clk 0:01:37.5]} 20... Bd7 {[%clk 0:01:03.4]} 21.
Nxb8 {[%clk 0:01:30.7]} 21... Rxb8 {[%clk 0:01:04.3]} 22. Rae1 {[%clk
0:01:24.3]} 22... Bf8 {[%clk 0:01:00.9]} 23. R7e2 {[%clk 0:01:08.6]} 23... Bxa4
{[%clk 0:00:56.5]} 24. b3 {[%clk 0:01:08.3]} 24... Bd7 {[%clk 0:00:50.7]} 25.
Ng5 {[%clk 0:01:06.1]} 25... Nh5 {[%clk 0:00:43.9]} 26. Bh2 {[%clk 0:01:03.1]}
26... Bh6 {[%clk 0:00:35.5]} 27. h4 {[%clk 0:01:00.5]} 27... f6 {[%clk
0:00:31.9]} 28. Re7 {[%clk 0:00:55.7]} 28... fxg5 {[%clk 0:00:30.4]} 29. hxg5
{[%clk 0:00:56.6]} 29... Bg7 {[%clk 0:00:29.8]} 30. g4 {[%clk 0:00:52.4]} 30...
Qd8 {[%clk 0:00:16.7]} 31. gxh5 {[%clk 0:00:50.7]} 31... gxh5 {[%clk 0:00:14.2]}
32. Bxd6 {[%clk 0:00:48.9]} 32... Ra8 {[%clk 0:00:14]} 33. Qf4 {[%clk
0:00:48.3]} 33... Qf8 {[%clk 0:00:09.6]} 34. Rxd7 {[%clk 0:00:45.6]} 34... Qxf4
{[%clk 0:00:07.5]} 35. Bxf4 {[%clk 0:00:46.5]} 1-0